Cogmind - Beta 13 @@@ ROGUE MODE // 2024.04.25 @ 19:20:46 Player: LEWiKK Result: Destroyed by D-53 Grenadier with Mini Grenade Launcher Performance ------------- Evolutions (0) 0 Regions Visited (2) 400 Robots Destroyed (6) 30 Value Destroyed (172) 172 Prototype IDs (0) 0 Alien Tech Used (0) 0 Bonus (60) 60 TOTAL SCORE: 662 Bonus ------- Follower Combat Kills 60 Cogmind --------- Core Integrity 0/250 Matter 300/300 Energy 99/100 System Corruption 11% Temperature Cool (0) Movement Core (100) Ox1 Location -10/Mines Parts ------- > --- POWER (1) -------- (None) > --- PROPULSION (2) --- (None) > --- UTILITY (2) ------ Small Storage Unit > --- WEAPON (2) ------- (None) > --- INVENTORY (8) ---- Light Ion Engine Improved Heat Sink EM Pulse Gun Small Laser Particle Gun Particle Gun Datajack Peak State ------------ > --- POWER ------------ Ion Engine > --- PROPULSION ------- Light Treads Light Treads > --- UTILITY ---------- Small Storage Unit Structural Scanner > --- WEAPON ----------- EM Pulse Gun Small Laser > --- INVENTORY -------- Light Ion Engine Light Ion Engine Improved Heat Sink EM Pulse Gun Small Laser Particle Gun Datajack [Rating: 8] Favorites ----------- Power Ion Engine Engine Ion Engine Propulsion Light Treads Treads Light Treads Leg Aluminum Leg Utility Small Storage Unit Device Structural Scanner Storage Small Storage Unit Weapon Small Laser Energy Gun Small Laser Build | -11 -10 -10 ------- Run | Yrd Mat Min Slots Evolved . | . . . Power . | . . . Propulsion . | . . . Utility . | . . . Weapon . | . . . Parts Attached 6 | . 4 2 Power 1 | . . 1 Engine 1 | . . 1 Core . | . . . Reactor . | . . . Propulsion 2 | . 2 . Treads 2 | . 2 . Leg . | . . . Wheel . | . . . Hover . | . . . Flight . | . . . Utility 1 | . 1 . Device 1 | . 1 . Storage . | . . . Processor . | . . . Hackware . | . . . Protection . | . . . Artifact . | . . . Weapon 2 | . 1 1 Energy Gun 2 | . 1 1 Energy Cannon . | . . . Ballistic Gun . | . . . Ballistic Cannon . | . . . Launcher . | . . . Special Weapon . | . . . Impact Weapon . | . . . Slashing Weapon . | . . . Piercing Weapon . | . . . Special Melee Weapon . | . . . Unidentified Prototypes . | . . . Parts Lost 9 | . 1 8 Power 2 | . . 2 Propulsion 2 | . . 2 Utility 1 | . . 1 Weapon 4 | . 1 3 Highest Loss Streak 6 | . 1 6 To Critical Strikes . | . . . Average Slot Usage (%) 94 | . 91 96 Engine 13 | . 14 13 Treads 26 | . 25 26 Device 10 | . 5 13 Storage 14 | . 14 14 Energy Gun 27 | . 28 26 Naked Turns . | . . . Heaviest Build 14 | 13 14 14 Greatest Support 40 | 20 40 40 Greatest Overweight (x) 1 | . . 1 Average Overweight (x) . | . . . Largest Inventory Capacity 8 | . 8 8 Average Capacity 8 | . 8 8 Most Carried 8 | . 8 8 Average Carried 7 | . 5 7 Final Capacity 8 | 8 8 8 Final Carried 8 | 6 8 7 Class Distribution -------------------- 100% | Mutant Dominant Class ---------------- Mutant | -10/Materials Mutant | -10/Mines Resources | -11 -10 -10 ----------- Run | Yrd Mat Min Matter Collected 235 | 200 35 . Remotely . | . . . Salvage Created 242 | . 232 10 Parts 14 | . 14 . Haulers Intercepted . | . . . Recyclers Shooed . | . . . Parts Field Recycled . | . . . Retrieved Matter . | . . . Parts Self-Destructed . | . . . Prevented . | . . . Kills | -11 -10 -10 ------- Run | Yrd Mat Min Combat Hostiles Destroyed 5 | . 4 1 Guns 5 | . 4 1 Classes Destroyed 3 | . 2 1 Builder 2 | . 2 . Grunt 4 | . 4 . Assembled 1 | . . 1 Best Kill Streak 4 | . 4 1 Combat Bots Only 3 | . 3 1 Max Kills in Single Turn 2 | . 2 1 Gunslinging . | . . . Exploded . | . . . Melee . | . . . Uniques/NPCs Destroyed . | . . . Combat | -11 -10 -10 -------- Run | Yrd Mat Min Hostile Shots Fired 86 | . 40 46 Missed 20 | . 8 12 Damage Taken 1014 | . 454 560 Core 278 | . 77 201 Absorbed by Shields . | . . . Core Remaining (%) 100 | 100 . . Volleys Fired 29 | . 23 6 Largest 2 | . 2 2 Hottest 80 | . 80 80 Shots Fired 57 | . 46 11 Gun 57 | . 46 11 Cannon . | . . . Launcher . | . . . Special . | . . . Kinetic . | . . . Thermal 31 | . 23 8 Explosive . | . . . Electromagnetic 26 | . 23 3 Robot Hit Streak 9 | . 9 3 Robot Miss Streak 2 | . 2 2 Penetration Max . | . . . Secondary Targets 1 | . 1 . Max Gunslinging Chain 1 | . 1 . Shots Hit Robots 38 | . 33 5 Core Hits 14 | . 12 2 Critical Kills . | . . . Critical Parts Destroyed . | . . . Critical Strikes 2 | . 1 1 Corrupt 2 | . 1 1 Melee Attacks . | . . . Impact . | . . . Slashing . | . . . Piercing . | . . . Sneak Attacks . | . . . Combat Hostiles . | . . . Follow-up Attacks . | . . . Damage Inflicted 546 | . 464 82 Guns 499 | . 418 81 Cannons . | . . . Explosions 46 | . 46 . Melee . | . . . Ramming 1 | . . 1 Kinetic . | . . . Thermal 320 | . 267 53 Explosive . | . . . Electromagnetic 225 | . 197 28 Impact . | . . . Slashing . | . . . Piercing . | . . . Highest Corruption 11 | . . 11 Average Corruption 10 | . . 10 Corruption Purged . | . . . Corruption Blocked . | . . . Effects 1 | . . 1 Heat Flow Errors 1 | . . 1 Overload Shots . | . . . Overflow Damage . | . . . Projectiles . | . . . Explosions . | . . . Melee . | . . . Knockbacks . | . . . Impact . | . . . Kinetic . | . . . Secondary . | . . . Self-Inflicted Damage 40 | . 40 . Shots 1 | . 1 . Rammed 1 | . . 1 Targets Rammed 1 | . . 1 Kicked . | . . . Crushed . | . . . Highest Temperature 382 | . 382 102 Average Temperature 170 | . 209 31 Received Heat Transfer 490 | . 252 238 Effects 4 | . 4 . Energy Bleed 4 | . 4 . Siege Activations . | . . . Robots Corrupted . | . . . Combat Hostiles . | . . . Parts Fried 2 | . 2 . Impact Corruptions . | . . . Robots Melted . | . . . Combat Hostiles . | . . . Parts Melted 2 | . 2 . Heat Transferred 675 | . 550 125 Parts Sabotaged . | . . . Parts Stolen . | . . . Parts Stripped . | . . . Power Chain Reactions 1 | . 1 . Alert | -11 -10 -10 ------- Run | Yrd Mat Min Peak Influence 149 | . 149 65 Initial 57 | . . 57 Average 56 | . 75 47 Maximum Alert Level . | . . . Low Security (%) 100 | . 100 100 Level 1 . | . . . Level 2 . | . . . Level 3 . | . . . Level 4 . | . . . Level 5 . | . . . High Security . | . . . Max Security . | . . . Squads Dispatched . | . . . Investigation . | . . . Extermination . | . . . Reinforcement . | . . . Assault . | . . . Garrison . | . . . Intercept . | . . . Searches Triggered . | . . . Construction Impeded . | . . . Haulers Reinforced . | . . . Active Scanning Responses . | . . . Cargo Convoy Interrupts . | . . . Stealth | -11 -10 -10 --------- Run | Yrd Mat Min Distress Signals . | . . . Communications Jammed . | . . . Distress Signals . | . . . Times Spotted 24 | . 7 17 Peak Tracking Total 12 | . 4 12 Tactical Retreats 2 | . 1 1 Traps | -11 -10 -10 ------- Run | Yrd Mat Min Traps Triggered . | . . . Indirectly . | . . . Trap Hack Attempts . | . . . Triggered . | . . . Disarmed . | . . . Reprogrammed . | . . . Reused . | . . . Traps Extracted . | . . . Installed . | . . . Triggered . | . . . Machines | -11 -10 -10 ---------- Run | Yrd Mat Min Machines Disabled . | . . . Max in Single Turn . | . . . Machines Repaired . | . . . Machines Dismantled . | . . . Machines Sabotaged . | . . . Overloaded Fab Kills . | . . . Hacking | -11 -10 -10 --------- Run | Yrd Mat Min Machines Accessed 1 | . 1 . Terminals 1 | . 1 . Fabricators . | . . . Repair Stations . | . . . Recycling Units . | . . . Scanalyzers . | . . . Garrison Access . | . . . Total Hacks 2 | . 2 . Successful . | . . . Failed 2 | . 2 . Catastrophic 1 | . 1 . Database Lockouts . | . . . Manual 2 | . 2 . Terminals 2 | . 2 . Fabricators . | . . . Repair Stations . | . . . Recycling Units . | . . . Scanalyzers . | . . . Garrison Access . | . . . Terminal Hacks . | . . . Fabricator Hacks . | . . . Repair Station Hacks . | . . . Recycling Unit Hacks . | . . . Scanalyzer . | . . . Garrison Access Hacks . | . . . Unauthorized Hacks . | . . . Terminals . | . . . Fabricators . | . . . Repair Stations . | . . . Recycling Units . | . . . Scanalyzers . | . . . Garrison Access . | . . . Data Cores Recovered . | . . . Used . | . . . Hacking Detections 1 | . 1 . Full Trace Events . | . . . Feedback Events . | . . . Feedback Blocked . | . . . Robot Schematics Acquired . | . . . Robots Built . | . . . Authchips . | . . . Time . | . . . Total Robot Build Rating . | . . . Part Schematics Acquired . | . . . Parts Built . | . . . Authchips . | . . . Time . | . . . Total Part Build Rating . | . . . Parts Repaired . | . . . Time . | . . . Parts Recycled . | . . . Recycled Matter . | . . . Retrieved Matter . | . . . Retrieved Components . | . . . Parts Scanalyzed . | . . . Part Schematics Acquired . | . . . Parts Damaged . | . . . Bothacking | -11 -10 -10 ------------ Run | Yrd Mat Min Used RIF Installer . | . . . Robots Hacked . | . . . Non-combat . | . . . Combat . | . . . Robot Hacks Applied . | . . . Relay Couplers Released . | . . . Fabnet Peak Effective % . | . . . Robots Rewired . | . . . Allies Hacked . | . . . Hacks Repelled . | . . . Allies | -11 -10 -10 -------- Run | Yrd Mat Min Total Allies 5 | . . 5 Largest Group 5 | . . 5 Highest-Rated Group 86 | . . 86 Highest-Rated Ally 31 | . . 31 Total Orders . | . . . Ally Attacks 22 | . . 22 Total Damage 256 | . . 256 Kills 6 | . . 6 Allies Corrupted . | . . . Allies Melted . | . . . Intel | -11 -10 -10 ------- Run | Yrd Mat Min Robot Analysis Total . | . . . Derelict Logs Recovered . | . . . Drone Launches . | . . . Drone Recoveries . | . . . Exploration | -11 -10 -10 ------------- Run | Yrd Mat Min Turns Passed 794 | . 264 530 Spaces Moved 429 | 1 103 325 Core 19 | . . 19 Treads 391 | . 85 306 Legs 19 | 1 18 . Wheels . | . . . Hover . | . . . Flight . | . . . Fastest Speed 100 | 120 120 100 Average Speed 155 | 120 153 156 Slowest Speed 160 | 120 160 160 Overloaded Moves . | . . . Propulsion Burnouts . | . . . Robots Hopped . | . . . Cave-ins Triggered . | . . . Exploration Rate (%) 27 | 1 18 63 Regions Visited 2 Branch Regions 1 Pre-discovered Areas . | . . . Known Exits Taken . | . . . Unknown Exits Taken 2 | 1 1 . Scrap Searched 1 | . . 1 Spaces Dug . | . . . Terrain Destroyed 3 | . 3 . Melee . | . . . Projectile . | . . . AOE 3 | . 3 . Terrain Rammed . | . . . Walls Destroyed . | . . . Machines Disabled . | . . . Actions | -11 -10 -10 --------- Run | Yrd Mat Min Total 500 | . 165 335 Wait 22 | . 22 . Move 427 | . 102 325 Hop . | . . . Pick Up 10 | . 9 1 Fast Attach . | . . . Attach 4 | . 2 2 Detach . | . . . Swap 2 | . 2 . Drop 5 | . 5 . Fire 29 | . 23 6 Melee . | . . . Ram . | . . . Kick . | . . . Crush 1 | . . 1 Escape Stasis . | . . . Rewire . | . . . Trap . | . . . Miscellaneous . | . . . Route ------- -11/Scrapyard -10/Materials -10/Mines (discovered 2 exits: [*Mat x2]) History --------- Turn | Location | Event 1 | -11/Scrapyard | Discovered new exit (range 0) 1 | -11/Scrapyard | Entered Materials 254 | -10/Materials | Discovered new exit (range 8) 265 | -10/Materials | Entered Mines 280 | -10/Mines | Met a Derelict bent on vengeance 305 | -10/Mines | Build established: Mutant 317 | -10/Mines | Assisted by bots powering up and referring to "LRC-V3" 464 | -10/Mines | Discovered new exit (range 13) 584 | -10/Mines | Discovered new exit (range 7) 749 | -10/Mines | Assembled infested the area 773 | -10/Mines | System corruption reached 10% 776 | -10/Mines | Core integrity fell below 50% 792 | -10/Mines | Core integrity fell below 20% 795 | -10/Mines | Destroyed by D-53 Grenadier with Mini Grenade Launcher Last Messages --------------- G0-NTO(g) knocked back. as-06838 destroyed. Sml. Laser destroyed. System corrupted by crushing effect (+4). as-01087 destroyed. G0-NTO(g) destroyed. Structural Scanner destroyed. System corrupted by crushing effect (+5). Lgt. Ion Engine destroyed. Lgt. Treads destroyed. System corrupted by crushing effect (+2). Slammed into as-96891. Lgt. Treads destroyed. Critical hit (Burn: +80). Sml. Laser destroyed. System corrupted: Heat flow error (+127). as-96910 destroyed. as-12669 destroyed. as-56244 sneak attacks. K-01 Serf destroyed. Map ----- +----------------------------------------------------+ | ???????#### ####????## ########## #### | | ??????#### ####????### ### ##### ### | | ??????### ###?????### ### ##### | | ??????## ##??????### ##### | | ??????## ##???????#### ##### | | ??????## ##?????????### ##?## < ## | | ??????## #######????######## ##?#### #### | | ??????## ########??########## ###?#### #### | | #?????## ## ######## ##### ###???## ##?# | | #?????## ###### ####??## ##?? | | #?????### #### #### #####?## ##?? | | #?????######## ## ##### ###?## #### | | #####??########### ##### ##?## #### | | ################### ##### ##?## # | | ############?### ##### ##?##### # | | ##??### ###### ##?##### # | | ##??### ## ##u = ##?##### # | | ########### ####### %* ###?## | | ########### ###### u ####?## #### | | ########### r ###?### #### | | ########## ##?#### #### | | ####### ###### #### | | #### ## d ### ###### ### | | #### ### ##### d ############## ## | | ##### $ ## ##### ########## # | | ###????? ## ##?##@ ##??????## ##### | | ????????? #### ###?## #######?## ###### | | ??????????############?##= #######?## ##?#### | | ??????????###########??##%=% ##### ##?#### # | | ???????????????????????##a!#### ##### ###### ## | | ???????????????????????##=a#### ## ##### ## | | ???????????????????????##aa####### ## #### ### | | ???????????????????????## ####### ## #### #### | | ?????????????????????####% ##???## ####? | | ????????????????????#####aa##???########## ###?? | | ???????????????## ##### %a################ ###??? | | ???????????????## #### % ######???????#######??? | | ???????????????## ###????????#####???? | | ???????????????###### ##????????????????? | | ???????????????###### ## ##????????????????? | | ???????????????????## #### ##????????????????? | | ???????????????????## ###### ##????????????????? | | ???????????????????######?### ##????????????????? | | ???????????????????#####???## ##?##########?????? | | ???????????????????????????## %#############?????? | | ???????????????????????????## %##### ##?????? | | ???????????????????????????##=% ##?????? | | ???????????????????????????##%!##### ##?????? | | ???????????????????????????##==##### """ ##?????? | | ???????????????????????????##*%##?## """ ##?????? | +----------------------------------------------------+ Best States ------------- Heat Dissipation 25 Energy Generation 10 Energy Capacity 250 Matter Stores 300 Matter Capacity 300 Sight Range 16 Terrain Scan Density 10 Evasion (%) 55 Recoil Reduction 2 Item Schematics ----------------- None Robot Schematics ------------------ None Fabricated ------------ Nothing Alien Tech Used ----------------- None Achievements -------------- None Challenges ------------ None Game ------ Seed NeutrinoSingularityAxe Manual? 0 Play Time 00:08:10 Cumulative 37.0 hours Start 2024.04.25 @ 19:13:04 End 2024.04.25 @ 19:20:46 Sessions 1 Manual Loads 0 Difficulty Rogue Special Mode None Game No. 42 Rogue 42 Adventurer 0 Explorer 0 Win Type - Total 0 Types 0/0/0/0/0/0/0/0/0 Lore% 35 Gallery% 25 Achievement% 28 Wizard Run 0 Options --------- Layout 1 ASCII 0 Keyboard 1 Movement Numpad Keybinds 0 Fullscreen 2 Font 20/SmallcapsGlow Map View 54x42 Zoom Use 0% Tactical HUD 0 Map Filters NONE Filters NONE Steam 1 RUN: 54d9a43f-b6d3-4d25-a2fc-cf69fe3153fe